fUST/lending_fUST_20250715
["ID","MTS","AMOUNT","RATE_DAILY","PERIOD"]
[372217242,1752552667548,-775.92,0.00023287,3]
[372217243,1752552667557,-460.0,0.00023287,3]
[372217244,1752552667567,-1271.11,0.00023287,3]
[372217245,1752552667576,-460.0,0.00023287,3]
[372217246,1752552667585,-1235.2,0.00023287,3]
[372217247,1752552667595,-726.27,0.00023287,3]
[372217248,1752552667604,-671.4,0.00023287,3]
[372217249,1752552667615,-799.6,0.00023287,3]
[372217250,1752552667626,-2030.22,0.00023287,3]
[372217251,1752552667636,-460.0,0.00023287,3]
[372217252,1752552667645,-465.31300322,0.00023287,3]
[372217253,1752552667655,-714.23,0.00023287,3]
[372217254,1752552667664,-1996.77,0.00023287,3]
[372217255,1752552667672,-460.0,0.00023287,3]
[372217256,1752552667679,-800.07,0.00023287,3]
[372217257,1752552667688,-3111.48,0.00023287,3]
[372217258,1752552667697,-422.29352691,0.00023287,3]
[372217259,1752552667707,-1667.58,0.00023287,3]
[372217260,1752552667717,-647.74,0.00023287,3]
[372217261,1752552667727,-466.76111448,0.00023287,3]
[372217262,1752552667736,-460.0,0.00023287,3]
[372217263,1752552667745,-460.0,0.00023287,3]
[372217264,1752552667754,-460.0,0.00023287,3]
[372217265,1752552667763,-470.31726893,0.00023287,3]
[372217266,1752552667771,-697.18,0.00023287,3]
[372217267,1752552667779,-971.98,0.00023287,3]
[372217268,1752552667787,-527.96,0.00023287,3]
[372217269,1752552667795,-460.0,0.00023287,3]
[372217270,1752552667803,-311.6091293,0.00023287,3]
[372217271,1752552667811,-532.76,0.00023287,3]
[372217272,1752552667819,-460.0,0.00023287,3]
[372217273,1752552667827,-567.58,0.00023287,3]
[372217274,1752552667835,-2796.67,0.00023287,3]
[372217275,1752552667843,-468.22048554,0.00023287,3]
[372217276,1752552667853,-460.0,0.00023287,3]
[372217277,1752552667866,-597.24,0.00023287,3]
[372217278,1752552667875,-460.0,0.00023287,3]
[372217279,1752552667885,-550.6,0.00023287,3]
[372217280,1752552667895,-1302.93,0.00023287,3]
[372217281,1752552667904,-860.81,0.00023287,3]
[372217282,1752552667914,-926.29,0.00023287,3]
[372217283,1752552667923,-3032.76,0.00023287,3]
[372217284,1752552667933,-460.0,0.00023287,3]
[372217285,1752552667943,-471.52,0.00023287,3]
[372217286,1752552667952,-601.9,0.00023287,3]
[372217287,1752552667961,-2582.26,0.00023287,3]
[372217288,1752552667971,-460.0,0.00023287,3]
[372217289,1752552667982,-1525.3,0.00023287,3]
[372217290,1752552667992,-460.0,0.00023287,3]
[372217291,1752552668002,-460.0,0.00023287,3]
[372217292,1752552668011,-1036.34,0.00023287,3]
[372217293,1752552668021,-2092.22,0.00023287,3]
[372217294,1752552668030,-460.0,0.00023287,3]
[372217295,1752552668039,-460.0,0.00023287,3]
[372217296,1752552668049,-460.0,0.00023287,3]
[372217297,1752552668058,-4312.82,0.00023287,3]
[372217298,1752552668067,-777.48,0.00023287,3]
[372217299,1752552668076,-460.0,0.00023287,3]
[372217300,1752552668086,-703.39,0.00023287,3]
[372217301,1752552668095,-637.13,0.00023287,3]
[372217302,1752552668104,-460.0,0.00023287,3]
[372217303,1752552668116,-4816.4,0.00023287,3]
[372217304,1752552668126,-460.0,0.00023287,3]
[372217305,1752552668216,-460.0,0.00023287,3]
[372217306,1752552668227,-1559.52,0.00023287,3]
[372217307,1752552668237,-1092.22,0.00023287,3]
[372217308,1752552668247,-688.86,0.00023287,3]
[372217309,1752552668257,-460.0,0.00023287,3]
[372217310,1752552668266,-1316.19,0.00023287,3]
[372217311,1752552668275,-460.0,0.00023287,3]
[372217312,1752552668284,-25587.27,0.000233,2]
[372217313,1752552668294,-806.53,0.000233,7]
[372217314,1752552668303,-3166.19,0.000233,7]
[372217315,1752552668313,-2200.0,0.00023399,2]
[372217316,1752552668323,-500.868,0.00023399,2]
[372217317,1752552668332,-815.77640485,0.00023417,9]
[372217318,1752552668342,-2986.95603657,0.00023459,2]
[372217319,1752552668351,-1000.0,0.000235,30]
[372217320,1752552668363,-1000.0,0.000235,2]
[372217321,1752552668373,-168.0,0.00023507,2]
[372217322,1752552668383,-815.77640485,0.00023555,9]
[372217323,1752552668392,-460.0,0.00023561,3]
[372217324,1752552668401,-460.0,0.00023561,3]
[372217325,1752552668410,-478.43,0.00023561,3]
[372217326,1752552668419,-460.0,0.00023561,3]
[372217327,1752552668428,-460.0,0.00023561,3]
[372217328,1752552668438,-326.5,0.00023561,3]
[372217329,1752552668447,-326.5,0.00023561,3]
[372217330,1752552668457,-326.5,0.00023561,3]
[372217331,1752552668467,-326.5,0.00023561,3]
[372217332,1752552668476,-326.5,0.00023561,3]
[372217333,1752552668485,-326.5,0.00023561,3]
[372217334,1752552668495,-326.5,0.00023561,3]
[372217335,1752552668504,-517.46,0.00023561,3]
[372217336,1752552668514,-460.0,0.00023561,3]
[372217337,1752552668524,-460.0,0.00023561,3]
[372217338,1752552668534,-460.0,0.00023561,3]
[372217339,1752552668544,-576.57,0.00023561,3]
[372217340,1752552668553,-460.0,0.00023561,3]
[372217341,1752552668564,-460.0,0.00023561,3]
[372217342,1752552668574,-460.0,0.00023561,3]
[372217343,1752552668584,-460.0,0.00023561,3]
[372217344,1752552668593,-460.0,0.00023561,3]
[372217345,1752552668603,-465.27257109,0.00023561,3]
[372217346,1752552668615,-460.0,0.00023561,3]
[372217347,1752552668627,-460.0,0.00023561,3]
[372217348,1752552668637,-460.0,0.00023561,3]
[372217349,1752552668647,-467.16855788,0.00023561,3]
[372217350,1752552668656,-777.72,0.00023561,3]
[372217351,1752552668667,-460.0,0.00023561,3]
[372217352,1752552668676,-460.0,0.00023561,3]
[372217353,1752552668686,-791.55,0.00023561,3]
[372217354,1752552668695,-460.0,0.00023561,3]
[372217355,1752552668705,-460.0,0.00023561,3]
[372217356,1752552668715,-460.0,0.00023561,3]
[372217357,1752552668724,-284.03824385,0.00023561,3]
[372217358,1752552668734,-460.0,0.00023561,3]
[372217359,1752552668743,-460.0,0.00023561,3]
[372217360,1752552668753,-519.47,0.00023561,3]
[372217361,1752552668762,-460.0,0.00023561,3]
[372217362,1752552668771,-4953.31,0.00023561,3]
[372217363,1752552668781,-775.92,0.00023561,3]
[372217364,1752552668790,-460.0,0.00023561,3]
[372217365,1752552668801,-1271.11,0.00023561,3]
[372217366,1752552668811,-460.0,0.00023561,3]
[372217367,1752552668820,-1235.2,0.00023561,3]
[372217368,1752552668830,-726.27,0.00023561,3]
[372217369,1752552668839,-671.4,0.00023561,3]
[372217370,1752552668848,-799.6,0.00023561,3]
[372217371,1752552668857,-2030.22,0.00023561,3]
[372217372,1752552668870,-460.0,0.00023561,3]
[372217373,1752552668880,-714.23,0.00023561,3]
[372217374,1752552668890,-1996.77,0.00023561,3]
[372217375,1752552668900,-460.0,0.00023561,3]
[372217376,1752552668913,-800.07,0.00023561,3]
[372217377,1752552668923,-3111.48,0.00023561,3]
[372217378,1752552668932,-1667.58,0.00023561,3]
[372217379,1752552668941,-647.74,0.00023561,3]
[372217380,1752552668950,-460.0,0.00023561,3]
[372217381,1752552668961,-563.34434951,0.00023561,3]
[372217382,1752552668970,-460.0,0.00023561,3]
[372217383,1752552668979,-697.18,0.00023561,3]
[372217384,1752552668989,-971.98,0.00023561,3]
[372217385,1752552668999,-527.96,0.00023561,3]
[372217386,1752552669009,-460.0,0.00023561,3]
[372217387,1752552669019,-532.76,0.00023561,3]
[372217388,1752552669028,-460.0,0.00023561,3]
[372217389,1752552669040,-567.58,0.00023561,3]
[372217390,1752552669050,-2796.67,0.00023561,3]
[372217391,1752552669059,-460.0,0.00023561,3]
[372217392,1752552669069,-597.24,0.00023561,3]
[372217393,1752552669079,-478.75890249,0.00023561,3]
[372217394,1752552669088,-550.6,0.00023561,3]
[372217395,1752552669097,-1302.93,0.00023561,3]
[372217396,1752552669107,-860.81,0.00023561,3]
[372217397,1752552669120,-926.29,0.00023561,3]
[372217398,1752552669130,-3032.76,0.00023561,3]
[372217399,1752552669139,-460.0,0.00023561,3]
[372217400,1752552669149,-471.52,0.00023561,3]
[372217401,1752552669160,-601.9,0.00023561,3]
[372217402,1752552669169,-2582.26,0.00023561,3]
[372217403,1752552669179,-460.0,0.00023561,3]
[372217404,1752552669189,-1525.3,0.00023561,3]
[372217405,1752552669199,-460.0,0.00023561,3]
[372217406,1752552669208,-460.0,0.00023561,3]
[372217407,1752552669217,-1036.34,0.00023561,3]
[372217408,1752552669226,-2092.22,0.00023561,3]
[372217409,1752552669236,-168.29815545,0.00023561,3]
[372217410,1752552704749,150.0,0.00016195,2]
[372217411,1752552705354,150.0,0.00017668,2]
[372217413,1752552771561,150.0,0.00014317,2]
[372217414,1752552772115,150.0,0.00015619,2]
[372217415,1752552847395,150.0,0.00015668,2]
[372217418,1752553048374,155.52554633,0.0002523,50]
[372217423,1752553176917,220.10286128,0.00026137,120]
[372217459,1752553423126,159.411348,0.00013699,2]
[372217462,1752553533168,-208.57941271,0.00019,2]
[372217463,1752553533191,-219.19650834,0.00019178,2]
[372217464,1752553628209,-303.47033502,0.00019082,2]
[372217465,1752553628232,-833.25916414,0.00019178,2]
[372217466,1752553630146,-414.0,0.00019178,2]
[372217467,1752553654080,-653.30880641,0.00019178,2]
[372217474,1752553722709,672.22947961,0.0002,120]
[372217478,1752553752119,-2880.23552111,0.00019178,2]
[372217479,1752553752144,-300.0,0.00019245,2]
[372217480,1752553752165,-669.0,0.00019245,2]
[372217481,1752553752186,-300.0,0.00019245,2]
[372217482,1752553752206,-9702.33540495,0.00019246,2]
[372217483,1752553759130,-297.66459505,0.00019246,2]
[372217484,1752553759152,-11875.6729872,0.00019906,2]
[372217590,1752553836843,-1824.88887101,0.000189,2]
[372217591,1752553836856,-254.08758828,0.00019,2]
[372217592,1752553836866,-268.2625438,0.00019906,2]
[372217593,1752553836877,-1685.768437,0.00020033,2]
[372217594,1752553836890,-991.5670947,0.00020033,2]
[372217595,1752553836900,-251.393835,0.00020086,2]
[372217596,1752553836910,-2365.6475794,0.00020193,2]
[372217597,1752553836922,-168.0,0.00020573,2]
[372217598,1752553836931,-552.54894205,0.00020584,2]
[372217599,1752553836942,-667.0,0.00020681,2]
[372217600,1752553836952,-300.0,0.00020682,2]
[372217601,1752553836962,-300.0,0.00020682,2]
[372217602,1752553836975,-207.4,0.00020684,2]
[372217603,1752553836984,-193.64425865,0.00020684,2]
[372217607,1752553836995,-151.0,0.00020684,2]
[372217609,1752553837004,-151.0,0.00020684,2]
[372217610,1752553837015,-151.0,0.00020684,2]
[372217611,1752553837024,-2000.0,0.00020684,2]
[372217612,1752553837034,-2000.0,0.00020684,2]
[372217613,1752553837050,-151.0,0.00020684,2]
[372217614,1752553837067,-2000.0,0.00020684,2]
[372217615,1752553837078,-151.0,0.00020684,2]
[372217616,1752553837089,-2000.0,0.00020684,2]
[372217617,1752553837099,-151.0,0.00020684,2]
[372217618,1752553837110,-151.0,0.00020684,2]
[372217619,1752553837119,-2000.0,0.00020684,2]
[372217620,1752553837128,-155.14388846,0.00020684,2]
[372217621,1752553837138,-151.0,0.00020684,2]
[372217622,1752553837148,-2000.0,0.00020684,2]
[372217623,1752553837158,-151.0,0.00020684,2]
[372217624,1752553837167,-598.14614054,0.00020684,2]
[372217625,1752553837180,-1401.85385946,0.00020684,2]
[372217626,1752553837190,-151.0,0.00020684,2]
[372217627,1752553837200,-691.15499585,0.00020684,2]
[372217767,1752553839966,-824.46592575,0.00020684,2]
[372218043,1752553846092,-484.3790784,0.00020684,2]
[372218045,1752553846101,-151.0,0.00020684,2]
[372218047,1752553846112,-300.0,0.00020684,2]
[372218049,1752553846122,-2000.0,0.00020684,2]
[372218051,1752553846131,-151.0,0.00020684,2]
[372218052,1752553846142,-2000.0,0.00020684,2]
[372218053,1752553846151,-151.0,0.00020684,2]
[372218054,1752553846162,-300.0,0.00020684,2]
[372218055,1752553846171,-2000.0,0.00020684,2]
[372218056,1752553846181,-151.0,0.00020684,2]
[372218057,1752553846190,-300.0,0.00020684,2]
[372218058,1752553846199,-2000.0,0.00020684,2]
[372218059,1752553846209,-151.0,0.00020684,2]
[372218060,1752553846218,-300.0,0.00020684,2]
[372218061,1752553846227,-2000.0,0.00020684,2]
[372218062,1752553846236,-151.0,0.00020684,2]
[372218063,1752553846246,-300.0,0.00020684,2]
[372218064,1752553846255,-2000.0,0.00020684,2]
[372218065,1752553846264,-151.0,0.00020684,2]
[372218066,1752553846273,-300.0,0.00020684,2]
[372218067,1752553846282,-2000.0,0.00020684,2]
[372218068,1752553846292,-300.0,0.00020684,2]
[372218069,1752553846301,-151.0,0.00020684,2]
[372218070,1752553846310,-2000.0,0.00020684,2]
[372218071,1752553846323,-300.0,0.00020684,2]
[372218072,1752553846332,-2000.0,0.00020684,2]
[372218073,1752553846341,-300.0,0.00020684,2]
[372218074,1752553846351,-6899.5504015,0.00020684,2]
[372218160,1752553855805,221.86,0.00024,120]
[372218161,1752553872848,150.0,0.00014436,2]
[372218163,1752554263200,150.0,0.00017802,2]
[372218165,1752554399696,150.0,0.00017882,2]
[372218168,1752554468758,150.0,0.0001753,2]
[372218169,1752554501614,-1216.59258067,0.000189,2]
[372218170,1752554501637,-150.0,0.00019124,2]
[372218171,1752554501659,-300.0,0.00019278,2]
[372218172,1752554501681,-518.0,0.00019278,2]
[372218173,1752554501704,-19336.7547549,0.00019279,2]
[372218174,1752554501724,-631.1598582,0.00019656,2]
[372218175,1752554501745,-242.119667,0.00019762,2]
[372218176,1752554501766,-166.0,0.00020094,2]
[372218177,1752554501788,-614.75913539,0.00020447,2]
[372218178,1752554501809,-300.0,0.00020546,2]
[372218179,1752554501834,-300.0,0.00020546,2]
[372218180,1752554501854,-460.0,0.00020547,3]
[372218181,1752554501876,-460.0,0.00020547,3]
[372218182,1752554501898,-460.0,0.00020547,3]
[372218183,1752554501921,-465.53407803,0.00020547,3]
[372218184,1752554501944,-460.0,0.00020547,3]
[372218185,1752554501966,-460.0,0.00020547,3]
[372218186,1752554501987,-460.0,0.00020547,3]
[372218187,1752554502010,-460.0,0.00020547,3]
[372218188,1752554502034,-460.0,0.00020547,3]
[372218189,1752554502056,-460.92417404,0.00020547,3]
[372218190,1752554502079,-460.0,0.00020547,3]
[372218191,1752554502101,-460.0,0.00020547,3]
[372218192,1752554502122,-460.0,0.00020547,3]
[372218193,1752554502144,-461.7232881,0.00020547,3]
[372218194,1752554502169,-5360.6,0.00020547,3]
[372218195,1752554502193,-1169.64,0.00020547,3]
[372218196,1752554502217,-460.52253673,0.00020547,3]
[372218197,1752554502238,-460.0,0.00020547,3]
[372218198,1752554502264,-901.08,0.00020547,3]
[372218199,1752554502285,-460.0,0.00020547,3]
[372218200,1752554502307,-460.0,0.00020547,3]
[372218201,1752554502328,-460.0,0.00020547,3]
[372218202,1752554502353,-44.58992694,0.00020547,3]
[372218203,1752554607373,150.0,0.00015751,2]
[372218204,1752554607812,150.0,0.00017183,2]
[372218206,1752554656588,163.578413,0.00013699,2]
[372218208,1752554673308,150.0,0.00015913,2]
[372218209,1752554753101,-435.42920975,0.000189,2]
[372218211,1752554828100,-714.03219947,0.000189,2]
[372218212,1752554828125,-7192.055171,0.00020195,2]
[372218213,1752554828148,-300.0,0.00020345,2]
[372218214,1752554828170,-300.0,0.00020345,2]
[372218215,1752554828194,-588.7,0.00020446,2]
[372218216,1752554828216,-300.0,0.00020446,2]
[372218217,1752554828238,-614.41000058,0.00020447,2]
[372218218,1752554828260,-1630.76530677,0.00020501,2]
[372218219,1752554846078,-757.0397867,0.00020501,2]
[372218220,1752554846099,-225.89223576,0.00020537,2]
[372218221,1752554849084,-228.42002969,0.00020537,2]
[372218222,1752554849122,-385.50647013,0.00020537,2]
[372218223,1752554849143,-638.82559192,0.00020546,2]
[372218224,1752554849164,-500.0,0.00020546,2]
[372218225,1752554849185,-218.49195012,0.00020546,2]
[372218226,1752554849208,-500.0,0.00020546,2]
[372218227,1752554849232,-415.28777544,0.00020546,2]
[372218229,1752554958097,-198.5872,0.00019547,2]
[372218236,1752555032112,-766.30760614,0.000189,2]
[372218237,1752555032122,-35.825013,0.00019547,2]
[372218238,1752555032132,-300.0,0.00020545,2]
[372218239,1752555032141,-300.0,0.00020545,2]
[372218240,1752555032151,-300.0,0.00020545,2]
[372218241,1752555032160,-84.71222456,0.00020546,2]
[372218242,1752555032169,-500.0,0.00020546,2]
[372218243,1752555032178,-500.0,0.00020546,2]
[372218244,1752555032187,-500.0,0.00020546,2]
[372218245,1752555032196,-500.0,0.00020546,2]
[372218246,1752555032206,-250.53087799,0.00020546,2]
[372218247,1752555032216,-500.0,0.00020546,2]
[372218248,1752555032226,-500.0,0.00020546,2]
[372218249,1752555032236,-500.0,0.00020546,2]
[372218250,1752555032245,-500.0,0.00020546,2]
[372218251,1752555032255,-483.33392627,0.00020546,2]
[372218252,1752555032266,-500.0,0.00020546,2]
[372218253,1752555032276,-625.77529133,0.00020546,2]
[372218255,1752555032285,-500.0,0.00020546,2]
[372218257,1752555032295,-450.55352857,0.00020546,2]
[372218259,1752555032304,-310.54787855,0.00020546,2]
[372218261,1752555032313,-4030.16411866,0.00020546,2]
[372218263,1752555032323,-2046.10867999,0.00020547,2]
[372218265,1752555032334,-460.0,0.00020547,3]
[372218267,1752555032348,-460.0,0.00020547,3]
[372218269,1752555032358,-460.62564882,0.00020547,3]
[372218270,1752555032368,-460.0,0.00020547,3]
[372218271,1752555032378,-460.0,0.00020547,3]
[372218272,1752555032389,-460.0,0.00020547,3]
[372218273,1752555032398,-460.0,0.00020547,3]
[372218274,1752555032407,-460.0,0.00020547,3]
[372218275,1752555032420,-460.0,0.00020547,3]
[372218276,1752555032430,-461.32048496,0.00020547,3]
[372218277,1752555032440,-461.7022494,0.00020547,3]
[372218278,1752555032450,-460.0,0.00020547,3]
[372218279,1752555032460,-460.0,0.00020547,3]
[372218280,1752555032470,-460.0,0.00020547,3]
[372218281,1752555032480,-460.0,0.00020547,3]
[372218282,1752555032490,-461.42830635,0.00020547,3]
[372218283,1752555032500,-478.81036062,0.00020547,3]
[372218284,1752555032509,-529.90452754,0.00020547,3]
[372218285,1752555032519,-461.69175601,0.00020547,3]
[372218286,1752555032529,-461.57064845,0.00020547,3]
[372218287,1752555032538,-460.0,0.00020547,3]
[372218288,1752555032548,-602.99285867,0.00020547,3]
[372218289,1752555032557,-460.0,0.00020547,3]
[372218290,1752555032567,-460.0,0.00020547,3]
[372218291,1752555032576,-460.0,0.00020547,3]
[372218293,1752555032586,-462.29947132,0.00020547,3]
[372218294,1752555032595,-461.48009776,0.00020547,3]
[372218295,1752555032605,-433.19690921,0.00020547,3]
[372218296,1752555032616,-400.39725086,0.00020547,3]
[372218297,1752555032625,-460.0,0.00020547,3]
[372218298,1752555032635,-460.0,0.00020547,3]
[372218299,1752555032644,-460.0,0.00020547,3]
[372218300,1752555032653,-460.0,0.00020547,3]
[372218301,1752555032663,-460.7842513,0.00020547,3]
[372218302,1752555032673,-460.0,0.00020547,3]
[372218303,1752555032682,-460.0,0.00020547,3]
[372218304,1752555032691,-460.0,0.00020547,3]
[372218305,1752555032700,-460.0,0.00020547,3]
[372218306,1752555032710,-461.06430704,0.00020547,3]
[372218307,1752555032720,-461.1353593,0.00020547,3]
[372218308,1752555032729,-460.0,0.00020547,3]
[372218309,1752555032739,-460.66112467,0.00020547,3]
[372218310,1752555032749,-460.0,0.00020547,3]
[372218311,1752555032758,-460.0,0.00020547,3]
[372218312,1752555032767,-460.0,0.00020547,3]
[372218313,1752555032777,-460.0,0.00020547,3]
[372218314,1752555032787,-378.57865704,0.00020547,3]
[372218315,1752555032800,-81.42134296,0.00020547,3]
[372218316,1752555032810,-460.0,0.00020547,3]
[372218317,1752555032819,-460.0,0.00020547,3]
[372218318,1752555032829,-462.18731209,0.00020547,3]
[372218319,1752555032838,-460.0,0.00020547,3]
[372218320,1752555032847,-460.0,0.00020547,3]
[372218321,1752555032858,-500.0,0.00020547,3]
[372218322,1752555032868,-460.0,0.00020547,3]
[372218323,1752555032878,-460.0,0.00020547,3]
[372218325,1752555032888,-460.0,0.00020547,3]
[372218327,1752555032897,-460.0,0.00020547,3]
[372218328,1752555032906,-182.98335067,0.00020547,3]
[372218371,1752555033322,-463.51996624,0.00020547,3]
[372218374,1752555033334,-460.0,0.00020547,3]
[372218376,1752555033346,-460.0,0.00020547,3]
[372218378,1752555033357,-463.79380061,0.00020547,3]
[372218380,1752555033368,-460.0,0.00020547,3]
[372218382,1752555033379,-462.23569264,0.00020547,3]
[372218384,1752555033390,-460.0,0.00020547,3]
[372218386,1752555033400,-460.0,0.00020547,3]
[372218388,1752555033411,-460.0,0.00020547,3]
[372218390,1752555033421,-353.62368527,0.00020547,3]
[372218392,1752555033432,-500.0,0.00020547,3]
[372218395,1752555033443,-500.0,0.00020547,3]
[372218397,1752555033453,-463.23163382,0.00020547,3]
[372218399,1752555033463,-460.74082134,0.00020547,3]
[372218401,1752555033474,-460.0,0.00020547,3]
[372218403,1752555033484,-460.0,0.00020547,3]
[372218405,1752555033494,-460.0,0.00020547,3]
[372218407,1752555033505,-460.0,0.00020547,3]
[372218409,1752555033515,-460.0,0.00020547,3]
[372218411,1752555033525,-461.35707375,0.00020547,3]
[372218413,1752555033535,-460.0,0.00020547,3]
[372218415,1752555033544,-460.0,0.00020547,3]
[372218417,1752555033555,-460.0,0.00020547,3]
[372218419,1752555033565,-460.0,0.00020547,3]
[372218421,1752555033575,-460.0,0.00020547,3]
[372218423,1752555033584,-460.0,0.00020547,3]
[372218425,1752555033594,-460.0,0.00020547,3]
[372218427,1752555033604,-460.0,0.00020547,3]
[372218429,1752555033614,-460.0,0.00020547,3]
[372218431,1752555033624,-460.0,0.00020547,3]
[372218433,1752555033633,-460.0,0.00020547,3]
[372218435,1752555033642,-460.0,0.00020547,3]
[372218437,1752555033653,-460.0,0.00020547,3]
[372218439,1752555033663,-460.0,0.00020547,3]
[372218441,1752555033672,-460.0,0.00020547,3]
[372218443,1752555033681,-460.0,0.00020547,3]
[372218445,1752555033691,-244.79522955,0.00020547,3]
[372218447,1752555033700,-460.0,0.00020547,3]
[372218449,1752555033710,-460.0,0.00020547,3]
[372218451,1752555033720,-642.85,0.00020547,3]
[372218453,1752555033729,-460.0,0.00020547,3]
[372218455,1752555033738,-460.0,0.00020547,3]
[372218457,1752555033748,-460.0,0.00020547,3]
[372218459,1752555033758,-460.0,0.00020547,3]
[372218461,1752555033767,-462.0461194,0.00020547,3]
[372218463,1752555033777,-460.0,0.00020547,3]
[372218465,1752555033786,-464.58661392,0.00020547,3]
[372218467,1752555033796,-460.0,0.00020547,3]
[372218469,1752555033806,-460.0,0.00020547,3]
[372218471,1752555033816,-460.0,0.00020547,3]
[372218473,1752555033826,-460.0,0.00020547,3]
[372218475,1752555033836,-441.51746795,0.00020547,3]
[372218477,1752555033846,-460.0,0.00020547,3]
[372218479,1752555033856,-460.0,0.00020547,3]
[372218481,1752555033865,-462.07863913,0.00020547,3]
[372218483,1752555033875,-460.0,0.00020547,3]
[372218485,1752555033884,-460.0,0.00020547,3]
[372218487,1752555033893,-460.0,0.00020547,3]
[372218489,1752555033903,-460.0,0.00020547,3]
[372218491,1752555033912,-460.0,0.00020547,3]
[372218493,1752555033922,-460.0,0.00020547,3]
[372218495,1752555033931,-460.0,0.00020547,3]
[372218497,1752555033941,-460.0,0.00020547,3]
[372218499,1752555033951,-503.86328492,0.00020547,3]
[372218501,1752555033960,-465.6919523,0.00020547,3]
[372218503,1752555033970,-460.0,0.00020547,3]
[372218505,1752555033979,-460.69411909,0.00020547,3]
[372218507,1752555033988,-160.0,0.00020547,3]
[372218509,1752555033998,-460.0,0.00020547,3]
[372218511,1752555034008,-460.0,0.00020547,3]
[372218513,1752555034017,-463.79,0.00020547,3]
[372218515,1752555034027,-460.0,0.00020547,3]
[372218517,1752555034037,-460.0,0.00020547,3]
[372218519,1752555034046,-460.0,0.00020547,3]
[372218521,1752555034056,-460.59,0.00020547,3]
[372218523,1752555034065,-460.0,0.00020547,3]
[372218525,1752555034075,-461.93026801,0.00020547,3]
[372218527,1752555034085,-460.0,0.00020547,3]
[372218529,1752555034095,-462.91440945,0.00020547,3]
[372218531,1752555034105,-460.0,0.00020547,3]
[372218533,1752555034116,-461.61087008,0.00020547,3]
[372218535,1752555034125,-460.0,0.00020547,3]
[372218538,1752555034135,-460.0,0.00020547,3]
[372218540,1752555034145,-464.3827885,0.00020547,3]
[372218542,1752555034155,-460.0,0.00020547,3]
[372218544,1752555034165,-479.74557484,0.00020547,3]
[372218546,1752555034174,-460.0,0.00020547,3]
[372218548,1752555034184,-460.0,0.00020547,3]
[372218549,1752555034193,-466.18987161,0.00020547,3]
[372218552,1752555034203,-460.0,0.00020547,3]
[372218554,1752555034213,-521.72386621,0.00020547,3]
[372218556,1752555034223,-460.0,0.00020547,3]
[372218558,1752555034232,-460.0,0.00020547,3]
[372218560,1752555034242,-460.0,0.00020547,3]
[372218562,1752555034251,-483.43803783,0.00020547,3]
[372218564,1752555034261,-466.54875584,0.00020547,3]
[372218566,1752555034271,-4718.55,0.00020547,3]
[372218568,1752555034281,-610.27,0.00020547,3]
[372218570,1752555034291,-1033.35,0.00020547,3]
[372218572,1752555034301,-2259.06,0.00020547,3]
[372218574,1752555034311,-460.0,0.00020547,3]
[372218576,1752555034320,-460.0,0.00020547,3]
[372218578,1752555034330,-1219.81,0.00020547,3]